Workbook

Sheet Intro
A1: Multi, intro hold
E3: 1 | F3: 2 | G3: 3 | H3: 4 | I3: 5 | J3: 6 | K3: 7 | L3: 8 | M3: 9 | N3: 10 | O3: 11 | P3: 12 | Q3: 13 | R3: 14 | S3: 15 | T3: 16 | V3: Total | X3: Placering
A5: Marlene Henneberg - J.O Henneberg | E5: 12.21 | F5: 10.08 | G5: 14.02 | H5: 10.14 | I5: 10.34 | J5: 6.69 | K5: 11.64 | L5: 3.86 | M5: 6.68 | N5: 11.89 | O5: 9.13 | P5: 9.69 | Q5: 7.84 | R5: 5.54 | S5: 7.33 | T5: 13.54 | V5: =AVERAGE(E5:T5) -> 9.41375 | X5: 11
A6: Jesper Bechsgaard - Anders Handberg Sørensen | E6: 8.65 | F6: 8.87 | G6: 10.34 | H6: 15.37 | I6: 7.3 | J6: 8.13 | K6: 9.27 | L6: 9.09 | M6: 9.89 | N6: 3.61 | O6: 7.04 | P6: 5.61 | Q6: 9.22 | R6: 2.52 | S6: 7.27 | T6: 16.53 | V6: =AVERAGE(E6:T6) -> 8.669375 | X6: 15
A8: Emil Jepsen - Dennis Bilde | E8: 2.75 | F8: 6.79 | G8: 9.66 | H8: 9.86 | I8: 7.5 | J8: 10.92 | K8: 15.37 | L8: 12.03 | M8: 12.01 | N8: 13.31 | O8: 11.74 | P8: 8.45 | Q8: 14.43 | R8: 9.43 | S8: 9.48 | T8: 19.51 | V8: =AVERAGE(E8:T8) -> 10.8275 | X8: 3
A9: Martin Klausen - Palle Jensen | E9: 6.51 | F9: 6.32 | G9: 5.98 | H9: 4.63 | I9: 4.89 | J9: 11.62 | K9: 7.55 | L9: 6.53 | M9: 10.11 | N9: 8.38 | O9: 8.45 | P9: 11.87 | Q9: 13.08 | R9: 6.03 | S9: 10.98 | T9: 3.69 | V9: =AVERAGE(E9:T9) -> 7.91375 | X9: 16
A11: Morten Stege - Nils Mønsted | E11: 11.16 | F11: 15.5 | G11: 14.05 | H11: 8.78 | I11: 9.66 | J11: 11.87 | K11: 4.63 | L11: 13.47 | M11: 3.54 | N11: 15.78 | O11: 8.47 | P11: 5.13 | Q11: 2.22 | R11: 14.52 | S11: 10.52 | T11: 16.31 | V11: =AVERAGE(E11:T11) -> 10.350625 | X11: 6
A12: Preben Taasti - Benny Maruart | E12: 8.17 | F12: 15.72 | G12: 10.25 | H12: 7.25 | I12: 12.7 | J12: 13.31 | K12: 12.45 | L12: 7.97 | M12: 6.73 | N12: 4.11 | O12: 10.68 | P12: 9.65 | Q12: 5.82 | R12: 16.13 | S12: 9.02 | T12: 0.49 | V12: =AVERAGE(E12:T12) -> 9.403125 | X12: 12
A14: H K Sørensen - Niels Henriksen | E14: 12.06 | F14: 9 | G14: 16.75 | H14: 14.33 | I14: 9.66 | J14: 12.89 | K14: 10.73 | L14: 16.14 | M14: 9.89 | N14: 6.69 | O14: 9.32 | P14: 14.87 | Q14: 14.86 | R14: 8.2 | S14: 11.03 | T14: 13.25 | V14: =AVERAGE(E14:T14) -> 11.854375 | X14: 2
A15: Søren Caspersen - Emil Buus Thomsen | E15: 1.76 | F15: 8.48 | G15: 9.52 | H15: 6.91 | I15: 8.27 | J15: 15.11 | K15: 8.36 | L15: 10.91 | M15: 7.97 | N15: 11.62 | O15: 11.53 | P15: 10.35 | Q15: 8.52 | R15: 10.18 | S15: 10.17 | T15: 9.26 | V15: =AVERAGE(E15:T15) -> 9.3075 | X15: 13
A17: Camilla Bo Krefeld - Johan Hammelev | E17: 18.24 | F17: 11 | G17: 8.81 | H17: 15.53 | I17: 14.21 | J17: 14.32 | K17: 9.55 | L17: 17.1 | M17: 13.32 | N17: 16.39 | O17: 11.55 | P17: 11.55 | Q17: 17.78 | R17: 3.87 | S17: 9.83 | T17: 6.75 | V17: =AVERAGE(E17:T17) -> 12.4875 | X17: 1
A18: Lida Hulgaard - Øjvind Hulgaard | E18: 7.94 | F18: 11.52 | G18: 15.12 | H18: 4.4 | I18: 12.39 | J18: 14.39 | K18: 9.14 | L18: 16.29 | M18: 10.11 | N18: 8.11 | O18: 8.26 | P18: 8.13 | Q18: 14.18 | R18: 5.48 | S18: 8.97 | T18: 10.74 | V18: =AVERAGE(E18:T18) -> 10.323125 | X18: 7
A20: Stig Andersen - Ricardo Mirasola | E20: 8.84 | F20: 4.28 | G20: 3.25 | H20: 13.09 | I20: 5.79 | J20: 5.61 | K20: 12.18 | L20: 13.74 | M20: 5.35 | N20: 18.64 | O20: 10.87 | P20: 14.39 | Q20: 5.57 | R20: 13.97 | S20: 12.73 | T20: 6.46 | V20: =AVERAGE(E20:T20) -> 9.6725 | X20: 8
A21: Lars Peter Damgaard - Jørgen Pabst | E21: 11.83 | F21: 4.5 | G21: 10.48 | H21: 5.67 | I21: 7.61 | J21: 5.68 | K21: 2.41 | L21: 14.82 | M21: 13.65 | N21: 10.32 | O21: 12.96 | P21: 10.31 | Q21: 6.92 | R21: 10.57 | S21: 12.67 | T21: 3.47 | V21: =AVERAGE(E21:T21) -> 8.991875 | X21: 14
A23: Morten Bilde - Søren Cilleborg Bilde | E23: 13.49 | F23: 13.21 | G23: 5.95 | H23: 12.75 | I23: 11.73 | J23: 7.11 | K23: 10.45 | L23: 3.71 | M23: 6.35 | N23: 1.36 | O23: 14.89 | P23: 11.91 | Q23: 12.16 | R23: 17.48 | S23: 9.03 | T23: 2.13 | V23: =AVERAGE(E23:T23) -> 9.606875 | X23: 10
A24: Jens Kofoed - Johanne Bilde Kofoed | E24: 17.25 | F24: 13.68 | G24: 9.75 | H24: 11.22 | I24: 10.34 | J24: 4.89 | K24: 10.86 | L24: 2.9 | M24: 14.65 | N24: 9.68 | O24: 11.73 | P24: 8.06 | Q24: 10.78 | R24: 14.46 | S24: 11.32 | T24: 10.97 | V24: =AVERAGE(E24:T24) -> 10.78375 | X24: 4
A26: Jørgen Cilleborg Hansen - Steen Schou | E26: 7.79 | F26: 11.13 | G26: 11.19 | H26: 15.6 | I26: 10.34 | J26: 4.89 | K26: 7.82 | L26: 5.18 | M26: 16.46 | N26: 15.89 | O26: 5.11 | P26: 11.94 | Q26: 11.48 | R26: 11.8 | S26: 10.97 | T26: 9.03 | V26: =AVERAGE(E26:T26) -> 10.41375 | X26: 5
A27: Arne Skyum - Lars Ugilt Jensen | E27: 11.35 | F27: 9.91 | G27: 4.88 | H27: 4.47 | I27: 15.11 | J27: 9.08 | K27: 17.59 | L27: 6.26 | M27: 13.27 | N27: 4.22 | O27: 8.27 | P27: 8.09 | Q27: 5.14 | R27: 9.82 | S27: 8.68 | T27: 17.87 | V27: =AVERAGE(E27:T27) -> 9.625625 | X27: 9
A44: Øjvind Hulgaard - Jesper Gad
A45: Niels Krøjgaard - Henrik Caspersen - H C Graversen

Sheet RR1
A1: Multi, RR1
E3: 1 | F3: 2 | G3: 3 | H3: 4 | I3: 5 | J3: 6 | K3: 7 | L3: 8 | M3: 9 | N3: 10 | O3: 11 | P3: 12 | Q3: 13 | R3: 14 | T3: Total | U3: Placering
T5: =AVERAGE(E5:R5) -> 
T6: =AVERAGE(E6:R6) -> 
T8: =AVERAGE(E8:R8) -> 
T9: =AVERAGE(E9:R9) -> 
T11: =AVERAGE(E11:R11) -> 
T12: =AVERAGE(E12:R12) -> 
T14: =AVERAGE(E14:R14) -> 
T15: =AVERAGE(E15:R15) -> 
T17: =AVERAGE(E17:R17) -> 
T18: =AVERAGE(E18:R18) -> 
T20: =AVERAGE(E20:R20) -> 
T21: =AVERAGE(E21:R21) -> 
T23: =AVERAGE(E23:R23) -> 
T24: =AVERAGE(E24:R24) -> 
T26: =AVERAGE(E26:R26) -> 
T27: =AVERAGE(E27:R27) -> 

Sheet Imp Par
A1: IMP Par
B4: R1 | C4: R2 | D4: R3 | E4: R4 | F4: R5 | G4: R6 | H4: R7 | I4: R8 | J4: R9 | K4: R10 | L4: R11 | M4: R12 | N4: R13 | O4: R14 | P4: R15 | Q4: Sum | R4: Placering
Q6: =SUM(B6:P6) -> 0
Q7: 0
Q8: 0
Q9: 0
Q10: 0
Q11: 0
Q12: 0
Q13: 0
Q14: 0
Q15: 0
Q16: 0
Q17: 0
Q18: 0
Q19: 0
Q20: 0
Q21: 0
B22: =SUM(B6:B21) -> 0 | C22: =SUM(C6:C21) -> 0 | D22: =SUM(D6:D21) -> 0 | E22: =SUM(E6:E21) -> 0 | F22: =SUM(F6:F21) -> 0 | G22: =SUM(G6:G21) -> 0 | H22: 0 | I22: 0 | J22: 0 | K22: 0 | L22: 0 | M22: 0 | N22: 0 | O22: 0 | P22: 0 | Q22: =SUM(Q6:Q21) -> 0

Sheet RR2
A1: Multi, RR2
E3: 1 | F3: 2 | G3: 3 | H3: 4 | I3: 5 | J3: 6 | K3: 7 | L3: 8 | M3: 9 | N3: 10 | O3: 11 | P3: 12 | Q3: 13 | R3: 14 | T3: Total | U3: Placering
T5: =AVERAGE(E5:R5) -> 
T6: =AVERAGE(E6:R6) -> 
T8: =AVERAGE(E8:R8) -> 
T9: =AVERAGE(E9:R9) -> 
T11: =AVERAGE(E11:R11) -> 
T12: =AVERAGE(E12:R12) -> 
T14: =AVERAGE(E14:R14) -> 
T15: =AVERAGE(E15:R15) -> 
T17: =AVERAGE(E17:R17) -> 
T18: =AVERAGE(E18:R18) -> 
T20: =AVERAGE(E20:R20) -> 
T21: =AVERAGE(E21:R21) -> 
T23: =AVERAGE(E23:R23) -> 
T24: =AVERAGE(E24:R24) -> 
T26: =AVERAGE(E26:R26) -> 
T27: =AVERAGE(E27:R27) -> 

Sheet Hold i alt
A1: Klub 32 - Hold 2020/2021
B5: RR1 | C5: RR2 | D5: Total | E5: Placering
D6: =SUM(B6:C6) -> 0 | E6: 1
D7: 0 | E7: 2
D8: 0 | E8: 3
D9: 0 | E9: 4
D10: 0 | E10: 5
D11: 0 | E11: 6
D12: 0 | E12: 7
D13: 0 | E13: 8

Sheet Slutspil
A1: SLUTSPIL
D2: Resultater som totalimp fra RB
E4: 1 | F4: 2 | G4: 3 | H4: 4 | N4: Total | O4: Placering
N6: =SUM(E6:H6) -> 0
N7: =SUM(E7:H7) -> 0
N9: 0
N10: 0
N12: 0
N13: 0
N15: 0
N16: 0
N18: 0
N19: 0
N21: 0
N22: 0
N24: 0
N25: 0
N27: 0
N28: 0
E30: =SUM(E6:E28) -> 0 | F30: =SUM(F6:F28) -> 0 | G30: =SUM(G6:G28) -> 0 | H30: =SUM(H6:H28) -> 0 | N30: =SUM(N6:N28) -> 0

Sheet Par
A1: Par
A2: Resultater fra Realbridge
B3: 1.aften | C3: 2.aften | D3: 3.aften | E3: 4.aften | G3: Sum | H3: Placering | J3: 392
G5: =SUM(B5:F5) -> 0
G6: =SUM(B6:E6) -> 0
G7: =SUM(B7:F7) -> 0
G8: =SUM(B8:E8) -> 0
G9: =SUM(B9:E9) -> 0
G10: =SUM(B10:F10) -> 0
G11: =SUM(B11:F11) -> 0
G12: =SUM(B12:E12) -> 0
G13: =SUM(B13:E13) -> 0
G14: =SUM(B14:E14) -> 0
G15: =SUM(B15:E15) -> 0
G16: =SUM(B16:F16) -> 0
G17: =SUM(B17:F17) -> 0
G18: =SUM(B18:F18) -> 0
G19: =SUM(B19:F19) -> 0
G20: =SUM(B20:E20) -> 0
B21: =SUM(B5:B20) -> 0 | C21: =SUM(C5:C20) -> 0 | D21: =SUM(D5:D20) -> 0 | E21: =SUM(E5:E20) -> 0 | G21: =SUM(G5:G20) -> 0

Sheet Grand prix
A1: Grand prix klub 32 (2021-2022)
F3: Intro hold | G3: RR 1 | H3: IMP1 | I3: RR2 | J3: Slutspil | K3: Par | M3: Total | O3: Placering
A5: Camilla Bo Krefeld - Johan Hammelev | F5: =Intro!X17*4 -> 4 | G5: ='RR1'!U27*7 -> 0 | H5: ='Imp Par'!R11*5 -> 0 | I5: ='RR2'!U27*7 -> 0 | J5: =Slutspil!O28*4 -> 0 | K5: =Par!H15*4 -> 0 | M5: =SUM(F5:L5) -> 4 | O5: 1
A6: H K Sørensen - Niels Henriksen | F6: =Intro!X14*4 -> 8 | G6: ='RR1'!U14*7 -> 0 | H6: ='Imp Par'!R16*5 -> 0 | I6: ='RR2'!U14*7 -> 0 | J6: =Slutspil!O15*4 -> 0 | K6: =Par!H19*4 -> 0 | M6: 8 | O6: 2
A7: Emil Jepsen - Dennis Bilde | F7: =Intro!X8*4 -> 12 | G7: ='RR1'!U5*7 -> 0 | H7: ='Imp Par'!R10*5 -> 0 | I7: ='RR2'!U5*7 -> 0 | J7: =Slutspil!O6*4 -> 0 | K7: =Par!H18*4 -> 0 | M7: 12 | O7: 3
A8: Jens Kofoed - Johanne Bilde Kofoed | F8: =Intro!X24*4 -> 16 | G8: ='RR1'!U18*7 -> 0 | H8: ='Imp Par'!R12*5 -> 0 | I8: ='RR2'!U18*7 -> 0 | J8: =Slutspil!O19*4 -> 0 | K8: =Par!H16*4 -> 0 | M8: 16 | O8: 4
A9: Jørgen Cilleborg Hansen - Steen Schou | F9: =Intro!X26*4 -> 20 | G9: ='RR1'!U8*7 -> 0 | H9: ='Imp Par'!R20*5 -> 0 | I9: ='RR2'!U8*7 -> 0 | J9: =Slutspil!O9*4 -> 0 | K9: =Par!H11*4 -> 0 | M9: 20 | O9: 5
A10: Morten Stege - Nils Mønsted | F10: =Intro!X11*4 -> 24 | G10: ='RR1'!U11*7 -> 0 | H10: ='Imp Par'!R8*5 -> 0 | I10: ='RR2'!U11*7 -> 0 | J10: =Slutspil!O12*4 -> 0 | K10: =Par!H6*4 -> 0 | M10: 24 | O10: 6
A11: Lida Hulgaard - Øjvind Hulgaard | F11: =Intro!X18*4 -> 28 | G11: ='RR1'!U20*7 -> 0 | H11: ='Imp Par'!R17*5 -> 0 | I11: ='RR2'!U20*7 -> 0 | J11: =Slutspil!O21*4 -> 0 | K11: =Par!H9*4 -> 0 | M11: 28 | O11: 7
A12: Stig Andersen - Ricardo Mirasola | F12: =Intro!X20*4 -> 32 | G12: ='RR1'!U26*7 -> 0 | H12: ='Imp Par'!R19*5 -> 0 | I12: ='RR2'!U26*7 -> 0 | J12: =Slutspil!O27*4 -> 0 | K12: =Par!H17*4 -> 0 | M12: 32 | O12: 8
A13: Arne Skyum - Lars Ugilt Jensen | F13: =Intro!X27*4 -> 36 | G13: ='RR1'!U21*7 -> 0 | H13: ='Imp Par'!R21*5 -> 0 | I13: ='RR2'!U21*7 -> 0 | J13: =Slutspil!O22*4 -> 0 | K13: =Par!H20*4 -> 0 | M13: 36 | O13: 9
A14: Morten Bilde - Søren Cilleborg Bilde | F14: =Intro!X23*4 -> 40 | G14: ='RR1'!U9*7 -> 0 | H14: ='Imp Par'!R18*5 -> 0 | I14: ='RR2'!U9*7 -> 0 | J14: =Slutspil!O10*4 -> 0 | K14: =Par!H14*4 -> 0 | M14: 40 | O14: 10
A15: Marlene Henneberg - J.O Henneberg | F15: =Intro!X5*4 -> 44 | G15: ='RR1'!U24*7 -> 0 | H15: ='Imp Par'!R9*5 -> 0 | I15: ='RR2'!U24*7 -> 0 | J15: =Slutspil!O25*4 -> 0 | K15: =Par!H7*4 -> 0 | M15: 44 | O15: 11
A16: Preben Taasti - Benny Maruart | F16: =Intro!X12*4 -> 48 | G16: ='RR1'!U23*7 -> 0 | H16: ='Imp Par'!R7*5 -> 0 | I16: ='RR2'!U23*7 -> 0 | J16: =Slutspil!O24*4 -> 0 | K16: =Par!H13*4 -> 0 | M16: 48 | O16: 12
A17: Søren Caspersen - Emil Buus Thomsen | F17: =Intro!X15*4 -> 52 | G17: ='RR1'!U15*7 -> 0 | H17: ='Imp Par'!R13*5 -> 0 | I17: ='RR2'!U15*7 -> 0 | J17: =Slutspil!O16*4 -> 0 | K17: =Par!H10*4 -> 0 | M17: 52 | O17: 13
A18: Lars Peter Damgaard - Jørgen Pabst | F18: =Intro!X21*4 -> 56 | G18: ='RR1'!U12*7 -> 0 | H18: ='Imp Par'!R15*5 -> 0 | I18: ='RR2'!U12*7 -> 0 | J18: =Slutspil!O13*4 -> 0 | K18: =Par!H12*4 -> 0 | M18: 56 | O18: 14
A19: Jesper Bechsgaard - Anders Handberg Sørensen | F19: =Intro!X6*4 -> 60 | G19: ='RR1'!U17*7 -> 0 | H19: ='Imp Par'!R6*5 -> 0 | I19: ='RR2'!U17*7 -> 0 | J19: =Slutspil!O18*4 -> 0 | K19: =Par!H5*4 -> 0 | M19: 60 | O19: 15
A20: Martin Klausen - Palle Jensen | F20: =Intro!X9*4 -> 64 | G20: ='RR1'!U6*7 -> 0 | H20: ='Imp Par'!R14*5 -> 0 | I20: ='RR2'!U6*7 -> 0 | J20: =Slutspil!O7*4 -> 0 | K20: =Par!H8*4 -> 0 | M20: 64 | O20: 16

Sheet Fremmøde
A1: Fremmøde som samlet par
B3: Introhold | C3: RR1 | D3: Imp | E3: RR2 | F3: Slut | G3: par | I3: Fremmøde% | K3: Fremmøde/antal
A4: Aftener: | B4: 4 | C4: 7 | D4: 5 | E4: 7 | F4: 4 | G4: 4 | K4: 4
B5: Fremmøde
A6: Marlene Henneberg - J.O Henneberg | B6: 4 | I6: =SUM(B6:G6)/$K$4% -> 100 | K6: =SUM(B6:G6) -> 4
A7: Jesper Bechsgaard - Anders Handberg Sørensen | B7: 4 | I7: =SUM(B7:G7)/$K$4% -> 100 | K7: =SUM(B7:G7) -> 4
A8: Preben Taasti - Benny Maruart | B8: 4 | I8: =SUM(B8:G8)/$K$4% -> 100 | K8: =SUM(B8:G8) -> 4
A9: H K Sørensen - Niels Henriksen | B9: 4 | I9: =SUM(B9:G9)/$K$4% -> 100 | K9: =SUM(B9:G9) -> 4
A10: Camilla Bo Krefeld - Johan Hammelev | B10: 4 | I10: =SUM(B10:G10)/$K$4% -> 100 | K10: =SUM(B10:G10) -> 4
A11: Stig Andersen - Ricardo Mirasola | B11: 4 | I11: =SUM(B11:G11)/$K$4% -> 100 | K11: =SUM(B11:G11) -> 4
A12: Lars Peter Damgaard - Jørgen Pabst | B12: 4 | I12: =SUM(B12:G12)/$K$4% -> 100 | K12: =SUM(B12:G12) -> 4
A13: Arne Skyum - Lars Ugilt Jensen | B13: 4 | I13: =SUM(B13:G13)/$K$4% -> 100 | K13: =SUM(B13:G13) -> 4
A14: Martin Klausen - Palle Jensen | B14: 3 | I14: =SUM(B14:G14)/$K$4% -> 75 | K14: =SUM(B14:G14) -> 3
A15: Jørgen Cilleborg Hansen - Steen Schou | B15: 3 | I15: =SUM(B15:G15)/$K$4% -> 75 | K15: =SUM(B15:G15) -> 3
A16: Lida Hulgaard - Øjvind Hulgaard | B16: 2 | I16: =SUM(B16:G16)/$K$4% -> 50 | K16: =SUM(B16:G16) -> 2
A17: Emil Jepsen - Dennis Bilde | B17: 2 | I17: =SUM(B17:G17)/$K$4% -> 50 | K17: =SUM(B17:G17) -> 2
A18: Søren Caspersen - Emil Buus Thomsen | B18: 2 | I18: =SUM(B18:G18)/$K$4% -> 50 | K18: =SUM(B18:G18) -> 2
A19: Morten Bilde - Søren Cilleborg Bilde | B19: 2 | I19: =SUM(B19:G19)/$K$4% -> 50 | K19: =SUM(B19:G19) -> 2
A20: Morten Stege - Nils Mønsted | B20: 0 | I20: =SUM(B20:G20)/$K$4% -> 0 | K20: =SUM(B20:G20) -> 0
A21: Jens Kofoed - Johanne Bilde Kofoed | B21: 0 | I21: =SUM(B21:G21)/$K$4% -> 0 | K21: =SUM(B21:G21) -> 0
